bitfinex/quotes_ETHUSD_20241009
["timestamp","ask_amount","ask_price","bid_price","bid_amount"]
[1728493959539,4.93139,2437.1,2436.5,0.7703]
[1728493959695,4.18027946,2437.0,2436.6,4.1860716]
[1728493960087,0.07681946,2437.0,2436.7,4.10382]
[1728493960601,4.18022946,2437.0,2436.6,4.18611159]
[1728493961036,4.18022946,2437.0,2436.6,4.10404]
[1728493961598,4.18022946,2437.0,2436.6,4.18611171]
[1728493962129,0.07681946,2437.0,2436.8,4.10366]
[1728493962447,7.42,2437.2,2436.8,4.10366]
[1728493962641,0.07688149,2436.9,2436.8,4.10366]
[1728493962801,11.52314,2437.2,2436.8,4.10366]
[1728493962996,0.07688149,2436.9,2436.8,4.10366]
[1728493963196,11.52314,2437.2,2436.8,5.44907671]
[1728493963539,11.52314,2437.2,2436.8,4.10366]
[1728493963694,0.07688149,2437.1,2436.8,4.10366]
[1728493963918,0.07688149,2437.1,2436.9,4.89745]
[1728493964145,4.10297,2437.3,2436.9,4.89745]
[1728493964356,0.07688149,2437.2,2436.9,4.89745]
[1728493964659,4.10297,2437.3,2436.9,4.89745]
[1728493964854,0.07688149,2437.1,2436.9,4.89745]
[1728493965085,8.20597,2437.3,2436.9,4.89745]
[1728493965226,0.07688149,2437.0,2436.9,4.89745]
[1728493965424,3.0,2437.4,2436.9,0.7939]
[1728493965618,0.07705033,2437.0,2436.9,4.89745]
[1728493965864,4.10293,2437.3,2436.9,5.387195]
[1728493966166,4.1031,2437.2,2436.8,4.10358]
[1728493966335,0.07705033,2437.1,2436.8,4.10358]
[1728493967221,0.07705033,2437.1,2436.9,4.10357]
[1728493967545,4.89702,2437.3,2436.9,4.10357]
[1728493967750,0.07707444,2437.2,2436.9,4.10344]
[1728493967921,4.8969,2437.3,2436.9,4.10344]
[1728493968121,0.07707444,2437.2,2436.9,4.10344]
[1728493968468,4.8969,2437.3,2436.9,4.10344]
[1728493968647,0.07707444,2437.1,2436.9,4.10344]
[1728493968962,4.8969,2437.3,2436.9,4.10344]
[1728493968963,0.794,2437.3,2437.0,4.10339]
[1728493969120,1.283683,2437.3,2436.9,4.10353]
[1728493969456,5.386583,2437.3,2436.9,4.10353]
[1728493971022,1.283683,2437.3,2437.0,4.10332]
[1728493971254,0.794,2437.3,2437.1,4.10314]
[1728493971903,3.7569,2437.5,2437.2,4.10306]
[1728493973489,0.7569,2437.5,2437.2,4.10306]
[1728493974897,3.0,2437.7,2436.9,0.7876]
[1728493975149,3.0,2437.7,2437.3,0.8016]
[1728493975150,0.8249,2437.7,2437.3,0.8016]
[1728493975307,0.8249,2437.7,2437.5,4.10255]
[1728493975602,0.20164471,2438.2,2437.6,4.10223]
[1728493975603,0.8249,2438.2,2437.6,4.10223]
[1728493975756,4.10158,2438.1,2437.6,4.10223]
[1728493975952,4.10158,2438.1,2437.7,4.10222]
[1728493975953,0.492648,2438.0,2437.7,4.10222]
[1728493976157,0.492648,2438.0,2437.6,4.1023]
[1728493976699,4.10162,2438.1,2437.7,4.10222]
[1728493977002,4.10172,2438.0,2437.6,4.1023]
[1728493977161,4.10172,2438.0,2437.5,8.20504]
[1728493977493,4.10172,2438.0,2437.6,4.10231]
[1728493977898,4.10162,2438.1,2437.7,4.10221]
[1728493978198,7.92639,2438.2,2437.7,4.10221]
[1728493978996,7.92639,2438.2,2437.8,4.10205]
[1728493979203,7.92639,2438.2,2437.7,4.10214]
[1728493980343,4.10156,2438.1,2437.7,4.10214]
[1728493980689,4.10172,2438.0,2437.5,8.20486]
[1728493980873,3.8249,2438.2,2437.6,4.10229]
[1728493981203,4.10159,2438.1,2437.6,4.10229]
[1728493981408,4.17111739,2438.1,2437.7,4.1022]
[1728493981611,0.06952739,2438.1,2437.8,4.10205]
[1728493982113,4.17108739,2438.1,2437.7,0.7684]
[1728493983071,4.17108739,2438.1,2437.7,4.87051]
[1728493983399,4.10175,2438.0,2437.5,4.10254]
[1728493983589,4.88416,2437.9,2437.5,4.10254]
[1728493983787,4.95398103,2437.9,2437.5,4.10254]
[1728493984500,4.10209,2437.8,2437.4,4.8533]
[1728493984797,0.7822,2437.9,2437.6,4.10231]
[1728493984969,0.06982103,2437.7,2437.6,4.587611]
[1728493985171,0.754,2438.1,2437.8,4.102]
[1728493985424,0.06982103,2438.0,2437.8,4.102]
[1728493986115,0.06982103,2438.0,2437.8,4.10193]
[1728493986276,0.06982103,2438.0,2437.9,4.88139]
[1728493986475,3.0,2438.3,2438.0,4.10163]
[1728493987018,0.8291,2438.4,2438.0,4.10163]
[1728493987019,7.93015,2438.4,2438.0,4.10163]
[1728493987186,12.03134,2438.4,2437.9,4.88135]
[1728493987392,7.93015,2438.4,2438.0,4.10159]
[1728493987725,0.8291,2438.4,2438.0,4.10159]
[1728493987873,0.8291,2438.4,2438.1,4.10148]
[1728493988074,4.10063,2438.7,2438.2,4.10129]
[1728493988307,4.87787,2438.8,2438.3,4.10114]
[1728493988819,4.10056,2438.7,2438.3,4.10114]
[1728493989317,4.87787,2438.8,2438.4,4.10095]
[1728493989318,4.87778,2438.8,2438.4,4.10095]
[1728493990174,4.87778,2438.8,2438.3,0.84011578]
[1728493990175,0.7774,2438.8,2438.5,4.10086]
[1728493990405,4.86154,2439.0,2438.6,4.10068]
[1728493990599,3.0,2438.9,2438.5,4.10087]
[1728493990810,0.7615,2439.0,2438.7,4.10054]
[1728493991013,11.51984,2439.2,2438.8,4.10029]
[1728493991196,4.09984,2439.2,2438.8,4.10029]
[1728493991898,4.09987,2439.1,2438.7,4.85864]
[1728493992641,4.09982,2439.2,2438.7,4.85853]
[1728493992838,4.995901,2439.2,2438.8,4.09875761]
[1728493993039,4.995901,2439.2,2438.7,4.85853]
[1728493993040,0.896081,2439.2,2438.9,4.1002]
[1728493993349,4.995801,2439.2,2438.7,8.95899]
[1728493993649,0.7615,2439.3,2438.8,4.18226868]
[1728493993833,4.86083,2439.5,2439.0,4.10001]
[1728493994154,4.86083,2439.5,2439.1,4.09986]
[1728493994155,0.7615,2439.5,2439.1,4.09986]
[1728493994297,4.5976189,2439.4,2439.0,4.10002]
[1728493995351,8.6971089,2439.4,2438.9,4.10018]
[1728493995501,0.4982489,2439.4,2438.7,0.7581]
[1728493995845,4.09983,2439.2,2438.7,8.95908]
[1728493996423,0.07074257,2439.1,2438.8,4.10036]
[1728493996607,4.09971,2439.2,2438.7,4.85862]
[1728493996912,4.09971,2439.2,2438.7,4.85855]
[1728493996913,0.07074257,2439.0,2438.7,4.85855]
[1728493997109,4.09971,2439.2,2438.7,4.85855]
[1728493997311,0.07074257,2438.9,2438.5,4.86827]
[1728493997513,0.7797,2439.0,2438.6,4.10058]
[1728493997808,3.0,2439.3,2438.8,4.86777]
[1728493998108,0.07070118,2438.9,2438.8,4.86777]
[1728493998327,7.09954,2439.3,2438.8,8.96805]
[1728493998525,0.07070118,2438.9,2438.8,4.86777]
[1728493998721,8.29741,2439.3,2438.8,4.86777]
[1728493998923,0.07070118,2438.9,2438.8,4.86777]
[1728493999405,8.29741,2439.3,2438.8,4.86777]
[1728493999605,0.07070118,2438.9,2438.8,4.86777]
[1728493999844,4.09954,2439.3,2438.8,0.7675]
[1728494000043,4.09954,2439.3,2438.9,4.1002]
[1728494000402,0.7797,2439.4,2438.9,4.1002]
[1728494000707,4.87907,2439.4,2439.0,4.09997]
[1728494001040,4.87907,2439.4,2439.0,4.18196076]
[1728494001443,4.87907,2439.4,2439.0,4.10002]
[1728494002242,0.7797,2439.4,2439.1,4.09985]
[1728494002419,4.09921,2439.5,2439.1,4.09985]
[1728494002741,4.09921,2439.5,2439.0,4.10002]
[1728494002899,4.09921,2439.5,2439.0,8.19997]
[1728494003549,0.947959,2439.6,2439.2,0.7573]
[1728494003699,0.947959,2439.6,2439.3,4.181412]
[1728494003700,0.121959,2439.6,2439.3,4.181412]
[1728494003900,0.121959,2439.6,2439.4,4.09933]
[1728494004141,0.121959,2439.6,2439.3,8.19887]
[1728494004435,0.121959,2439.6,2439.4,4.09934]
[1728494004646,0.121959,2439.6,2439.4,4.09926]
[1728494004937,0.121959,2439.6,2439.4,4.18124193]
[1728494005144,0.121959,2439.6,2439.3,4.09952]
[1728494005842,0.121959,2439.6,2439.4,4.09936]
[1728494006046,0.121959,2439.6,2439.5,4.18117339]
[1728494006244,0.121959,2439.6,2439.5,4.0992]
[1728494006604,0.121959,2439.6,2439.5,6.13820076]
[1728494007002,0.121959,2439.6,2439.5,0.7573]
[1728494007208,0.19316369,2439.6,2439.5,4.8565]
[1728494007504,0.19316369,2439.6,2439.5,4.9384743]
[1728494007750,0.19316369,2439.6,2439.5,0.7573]
[1728494007904,0.121959,2439.6,2439.5,0.7573]
[1728494008106,0.121959,2439.6,2439.5,4.8565]
[1728494008424,0.19316369,2439.6,2439.5,4.8565]
[1728494008810,0.19316369,2439.6,2439.3,0.7573]
[1728494009045,4.220999,2439.6,2439.1,4.8571]
[1728494009248,0.07120469,2439.5,2439.2,4.0997]
[1728494009788,0.07120469,2439.5,2439.3,4.09952]
[1728494010175,0.07120469,2439.5,2439.4,4.09936]
[1728494010360,0.07120469,2439.5,2439.3,4.09952]
[1728494010560,0.07120469,2439.5,2439.3,8.19891]
[1728494010887,0.07120469,2439.5,2439.4,4.09936]
[1728494011250,0.07120469,2439.5,2439.4,4.85666]
[1728494014962,0.07120469,2439.5,2439.4,4.09936]
[1728494016896,0.07120469,2439.5,2439.4,4.18133429]
[1728494017287,0.07120469,2439.5,2439.4,4.09936]
[1728494019197,0.07120469,2439.5,2439.4,9.92524063]
[1728494019608,0.121959,2439.6,2439.5,4.0992]
[1728494020099,0.19084845,2439.6,2439.5,4.0992]
[1728494021398,0.19084845,2439.6,2439.4,4.09936]
[1728494021596,0.19084845,2439.6,2439.1,4.09973]
[1728494021905,0.823,2439.5,2439.1,4.85149]
[1728494022192,0.823,2439.5,2439.2,4.09969]
[1728494022403,0.0687587,2439.4,2439.2,4.09969]
[1728494023198,0.0687587,2439.4,2439.3,4.09953]
[1728494023354,0.0687587,2439.4,2439.2,4.09967]
[1728494023755,0.121959,2439.6,2439.2,4.09967]
[1728494023952,0.0687587,2439.3,2439.2,4.09967]
[1728494024192,0.121959,2439.6,2439.2,4.09963]
[1728494024402,0.0687587,2439.3,2439.1,0.7517]
[1728494024695,0.121959,2439.6,2439.1,4.09985]
[1728494024696,4.221079,2439.6,2439.1,4.09985]
[1728494024895,0.0687587,2439.2,2439.1,4.09985]
[1728494025067,0.121959,2439.6,2439.1,4.09985]
[1728494025396,0.121959,2439.6,2439.2,4.09963]
[1728494025597,5.1353999,2439.6,2439.1,4.09985]
[1728494025957,0.7851,2439.4,2439.0,4.09997]
[1728494026561,0.7851,2439.4,2439.1,4.09985]
[1728494026562,0.0687587,2439.3,2439.1,4.09985]
[1728494027169,0.0687587,2439.3,2439.2,4.0997]
[1728494028609,0.0687587,2439.3,2439.1,8.19963]
[1728494028773,0.0687587,2439.3,2439.0,4.10001]
[1728494028774,0.56406757,2439.3,2439.0,4.10001]
[1728494028979,0.56406757,2439.3,2439.1,4.09984]
[1728494029169,0.56406757,2439.3,2439.0,4.10001]
[1728494029997,4.66360757,2439.3,2438.9,4.10018]
[1728494030199,0.56406757,2439.3,2439.0,4.10001]
[1728494030965,4.66361757,2439.3,2438.9,8.2003]
[1728494031212,0.56406757,2439.3,2438.9,8.2003]
[1728494031366,0.0687587,2439.3,2439.0,4.1]
[1728494034880,0.0687587,2439.3,2439.0,8.1999]
[1728494035083,0.0687587,2439.3,2439.0,4.0999]
[1728494035258,0.0687587,2439.3,2439.0,8.19986]
[1728494035459,0.0687587,2439.3,2439.0,4.0999]
[1728494035661,0.0687587,2439.3,2439.0,8.19986]
[1728494036390,0.0687587,2439.3,2439.0,4.0999]
[1728494036760,0.0687587,2439.3,2439.2,4.0997]
[1728494037399,0.121959,2439.6,2439.3,4.09952]
[1728494037611,1.0299229,2439.6,2439.3,4.09952]
[1728494039909,5.1289529,2439.6,2439.2,4.09968]
[1728494040096,5.1289529,2439.6,2439.2,4.1816646]
[1728494040709,1.0299229,2439.6,2439.2,4.0997]
[1728494040880,0.06863457,2439.5,2439.2,4.0997]
[1728494041209,0.06863457,2439.5,2439.2,4.18168461]
[1728494041679,5.1289729,2439.6,2439.2,4.18168461]
[1728494042004,0.06851045,2439.4,2439.2,4.18168461]
[1728494042164,5.1289729,2439.6,2439.2,4.18168461]
[1728494042370,0.06851045,2439.3,2439.2,4.18168461]
[1728494042570,5.1289729,2439.6,2439.2,4.18168461]
[1728494042571,4.221009,2439.6,2439.2,4.18168461]
[1728494042879,5.4290399,2439.6,2439.1,4.09977]
[1728494043098,0.06851045,2439.5,2439.2,4.18158466]
[1728494044214,0.06851045,2439.5,2439.4,4.09936]
[1728494044582,0.06851045,2439.5,2439.4,4.18133422]
[1728494044896,0.121959,2439.6,2439.5,4.0992]
[1728494045064,0.121959,2439.6,2439.5,4.18117085]
[1728494045827,0.121959,2439.6,2439.3,4.89811]
[1728494046126,4.09954,2439.3,2438.9,4.10017]
[1728494046681,4.09951,2439.4,2439.0,4.10002]
[1728494050034,4.09987,2439.1,2438.7,5.77690162]
[1728494050205,4.09987,2439.1,2438.7,4.91992]
[1728494050398,0.7584,2439.1,2438.7,0.8194]
[1728494050600,5.0126239,2439.4,2438.7,0.8194]
[1728494050601,4.0998,2439.2,2438.7,4.91984]
[1728494050811,0.06019304,2439.0,2438.7,4.91984]
[1728494051134,0.06019304,2438.9,2438.7,4.91984]
[1728494051421,4.0998,2439.2,2438.7,5.90758016]
[1728494051830,0.06019304,2439.1,2438.7,5.90758016]
[1728494052500,0.06019304,2439.1,2438.8,0.08199698]
[1728494053089,4.16007304,2439.1,2438.8,0.08199698]
[1728494058136,0.06019304,2439.1,2438.7,0.08199698]
[1728494058292,4.10052,2438.8,2438.5,0.7625]
[1728494058492,4.10062,2438.7,2438.2,13.10083162]
[1728494058692,4.10095,2438.5,2438.2,1.61948162]
[1728494058922,4.10095,2438.5,2437.9,5.72129162]
[1728494058923,4.10121,2438.3,2437.9,5.72129162]
[1728494059129,4.10106,2438.4,2438.0,4.10171]
[1728494059337,0.05942358,2438.2,2438.1,4.10151]
[1728494059498,4.10061,2438.7,2438.2,4.10126]
[1728494059699,4.10061,2438.7,2438.1,4.86401]
[1728494059700,4.10061,2438.7,2438.3,4.10121]
[1728494060432,4.10061,2438.7,2437.9,4.86427]
[1728494060433,4.10113,2438.4,2437.9,4.86427]
[1728494060607,4.10093,2438.5,2438.0,4.10164]
[1728494061394,4.10106,2438.4,2438.1,0.08202214]
[1728494061629,4.10093,2438.5,2437.9,0.7625]
[1728494061938,4.10092,2438.5,2438.1,4.10153]
[1728494062109,4.10092,2438.5,2438.1,5.00628291]
[1728494063533,4.10106,2438.4,2438.1,0.90475291]
[1728494063838,4.10092,2438.5,2438.1,5.00629291]
[1728494064442,4.10092,2438.5,2438.1,9.10783291]
[1728494064596,4.10068,2438.7,2438.2,4.10138]
[1728494064791,4.10075,2438.6,2438.2,4.10138]
[1728494064991,4.10075,2438.6,2438.1,5.00629291]
[1728494065498,4.10075,2438.6,2438.2,0.08201553]
[1728494065698,8.20159,2438.6,2438.2,0.08201553]
[1728494065921,4.1009,2438.5,2438.1,5.00622291]
[1728494066237,4.10076,2438.6,2438.3,0.7622]
[1728494066625,4.10076,2438.6,2438.3,0.84399546]
[1728494067437,4.10068,2438.7,2438.3,4.94515546]
[1728494068204,4.10068,2438.7,2438.3,0.84399546]
[1728494068850,8.20134,2438.7,2438.3,0.84399546]
[1728494069507,4.10039,2438.8,2438.4,0.08201338]
[1728494069906,4.10039,2438.8,2438.3,5.35793055]
[1728494070315,4.10039,2438.8,2438.3,5.35791055]
[1728494070901,4.10039,2438.8,2438.3,9.45905055]
[1728494070902,0.05844535,2438.7,2438.3,9.45905055]
[1728494071106,4.10039,2438.8,2438.3,9.45905055]
[1728494071309,0.05844535,2438.6,2438.3,9.45905055]
[1728494071540,4.10039,2438.8,2438.4,0.94590506]
[1728494071846,0.05844535,2438.5,2438.3,5.35787055]
[1728494072031,4.10039,2438.8,2438.4,0.08200737]
[1728494072219,4.10039,2438.8,2438.3,5.35787055]
[1728494072419,4.10039,2438.8,2438.3,9.45900055]
[1728494073219,4.10039,2438.8,2438.4,4.18296728]
[1728494073752,8.20085,2438.8,2438.4,4.18296728]
[1728494074042,8.20085,2438.8,2438.4,4.10096]
[1728494074200,4.10039,2438.8,2438.4,4.10096]
[1728494074410,4.0999,2439.1,2438.6,4.859]
[1728494074635,4.09954,2439.3,2438.9,0.7583]
[1728494074948,4.09954,2439.3,2439.0,0.08198847]
[1728494075159,4.09981,2439.2,2438.9,0.7583]
[1728494075452,0.8218,2439.5,2439.0,4.1820132]
[1728494075453,4.0995,2439.4,2439.0,4.1820132]
[1728494075610,4.0995,2439.4,2439.0,0.0819932]
[1728494076006,4.0995,2439.4,2439.0,4.1820332]
[1728494077011,4.92106,2439.5,2439.0,4.1820332]
[1728494077228,4.92106,2439.5,2439.0,5.13466312]
[1728494077435,4.09936,2439.4,2439.0,5.13466312]
[1728494079033,4.09975,2439.2,2438.9,1.244166]
[1728494079241,4.09989,2439.1,2438.7,4.1005]
[1728494079409,4.09989,2439.1,2438.7,4.9224]
[1728494079610,4.09989,2439.1,2438.7,0.8219]
[1728494080158,4.09966,2439.3,2438.8,0.08199732]
[1728494080309,0.05868749,2439.0,2438.9,4.1002]
[1728494080516,4.09966,2439.3,2438.9,5.002435]
[1728494080740,0.765,2439.5,2439.1,0.7775]
[1728494080741,4.09938,2439.4,2439.1,0.7775]
[1728494080951,4.86431,2439.5,2439.1,0.7775]
[1728494081116,8.96367,2439.5,2439.1,0.7775]
[1728494081329,4.86431,2439.5,2439.1,0.7775]
[1728494081523,0.765,2439.5,2438.9,1.679735]
[1728494081727,4.0995,2439.4,2438.9,1.679735]
[1728494082134,4.09971,2439.2,2438.9,1.679735]
[1728494082335,4.09961,2439.3,2438.9,4.8777]
[1728494082541,8.19924,2439.3,2438.9,4.8777]
[1728494082838,4.09961,2439.3,2438.9,4.8777]
[1728494083260,4.09971,2439.2,2438.9,0.7775]
[1728494083943,4.09942,2439.4,2439.0,4.09996]
[1728494084159,4.221079,2439.6,2439.2,4.09968]
[1728494084361,0.121959,2439.6,2439.3,4.95042512]
[1728494085672,0.121959,2439.6,2439.3,4.87815]
[1728494085837,0.121959,2439.6,2439.4,4.09935]
[1728494086178,0.05886049,2439.5,2439.4,4.09935]
[1728494086882,0.05886049,2439.5,2439.4,4.587155]
[1728494087745,0.05886049,2439.5,2439.3,0.7787]
[1728494087746,4.15811049,2439.5,2439.3,0.7787]
[1728494087939,4.15811049,2439.5,2439.1,4.87719]
[1728494088736,0.05886049,2439.5,2439.2,4.09969]
[1728494090530,4.15816049,2439.5,2439.1,8.97697]
[1728494090732,4.15816049,2439.5,2439.1,4.87718]
[1728494090935,4.15816049,2439.5,2439.1,9.05894695]
[1728494091186,4.15816049,2439.5,2439.1,8.97696]
[1728494092357,4.15816049,2439.5,2439.1,4.87718]
[1728494092883,4.94686049,2439.5,2439.1,0.7774]
[1728494093187,9.88410144,2439.5,2439.0,7.1]
[1728494093340,9.88406144,2439.5,2439.1,4.09982]
[1728494093543,5.78476144,2439.5,2439.1,4.09982]
[1728494093743,9.88407144,2439.5,2439.1,4.09982]
[1728494093973,5.78476144,2439.5,2439.1,4.09982]
[1728494094267,5.78476144,2439.5,2438.9,4.89509]
[1728494094268,5.78469144,2439.5,2439.0,4.09995]
[1728494094660,4.09936,2439.4,2438.9,4.89503]
[1728494094852,4.09936,2439.4,2439.0,4.09997]
[1728494095056,0.059023,2439.3,2439.0,4.09997]
[1728494095583,0.059023,2439.3,2439.2,4.0997]
[1728494095782,0.121959,2439.6,2439.3,4.09941]
[1728494097857,0.121959,2439.6,2439.2,0.7502]
[1728494098083,4.220999,2439.6,2439.2,0.7502]
[1728494098465,4.220999,2439.6,2439.2,4.84988]
[1728494099608,4.220999,2439.6,2439.2,0.7502]
[1728494100103,4.220999,2439.6,2439.2,4.84985]
[1728494100311,4.220999,2439.6,2439.2,0.7502]
[1728494100665,4.220999,2439.6,2439.2,4.84983]
[1728494101105,0.05900225,2439.5,2439.2,4.84983]
[1728494101600,0.05900225,2439.5,2439.2,0.7502]
[1728494101601,4.15821225,2439.5,2439.2,0.7502]
[1728494101809,0.05900225,2439.5,2439.2,4.09963]
[1728494102107,4.15824225,2439.5,2439.1,4.09984]
[1728494102602,0.05900225,2439.5,2439.3,4.09937]
[1728494102802,0.05900225,2439.5,2439.4,4.09936]
[1728494103003,0.05900225,2439.5,2439.4,4.88666]
[1728494103603,0.05900225,2439.5,2439.4,4.96863282]
[1728494103904,0.05900225,2439.5,2439.4,4.88666]
[1728494104113,0.121959,2439.6,2439.4,5.785263]
[1728494104407,0.121959,2439.6,2439.3,4.09945]
[1728494104580,0.121959,2439.6,2439.2,8.19922]
[1728494104581,4.220999,2439.6,2439.2,8.19922]
[1728494104784,0.8245,2439.4,2439.1,5.814655]
[1728494105006,0.8245,2439.4,2439.2,4.09969]
[1728494105306,0.8245,2439.4,2439.1,1.714815]
[1728494105307,0.05924774,2439.3,2439.1,1.714815]
[1728494105475,0.05924774,2439.3,2439.2,4.0997]
[1728494105677,0.05924774,2439.3,2439.1,4.91576]
[1728494105888,5.045489,2439.6,2439.1,4.91576]
[1728494106111,5.045489,2439.6,2439.1,0.816]
[1728494106112,4.15857774,2439.5,2439.1,0.816]
[1728494106308,4.09943,2439.4,2439.0,4.10002]
[1728494106910,0.05924774,2439.3,2439.0,4.09991]
[1728494107110,0.05924774,2439.3,2439.1,4.0998]
[1728494107265,4.09922,2439.5,2439.1,4.0998]
[1728494107697,0.05924774,2439.4,2439.1,4.0998]
[1728494108112,0.05924774,2439.4,2439.0,0.491591]
[1728494108311,4.09922,2439.5,2439.1,4.09986]
[1728494108614,0.05924774,2439.3,2439.0,8.2]
[1728494108797,4.09949,2439.4,2439.0,4.1]
[1728494108971,0.05924774,2439.2,2439.0,4.1]
[1728494109189,4.09949,2439.4,2439.0,4.1]
[1728494109383,0.05924774,2439.1,2438.9,0.816]
[1728494109613,4.09965,2439.3,2438.9,4.10011]
[1728494109614,0.7551,2439.2,2438.9,4.10011]
[1728494109824,0.05924774,2439.0,2438.9,4.10011]
[1728494110011,0.7551,2439.2,2438.9,4.10011]
[1728494110213,0.7551,2439.2,2438.8,4.10035]
[1728494110214,0.05924774,2439.0,2438.8,4.10035]
[1728494110529,0.05913711,2438.9,2438.6,3.0]
[1728494110731,4.10004,2439.0,2438.6,8.80587161]
[1728494111026,0.05913711,2438.8,2438.6,8.80587161]
[1728494111227,4.10004,2439.0,2438.6,8.80587161]
[1728494111518,4.10004,2439.0,2438.6,4.10063]
[1728494111821,0.05904719,2438.9,2438.6,4.10063]
[1728494112327,4.85656,2438.8,2438.3,0.9699054]
[1728494112619,4.10055,2438.7,2438.3,4.1012]
[1728494112819,4.10055,2438.7,2438.2,4.10135]
[1728494112820,8.20123,2438.7,2438.2,4.10135]
[1728494112983,0.05898839,2438.6,2438.2,8.20264]
[1728494113185,4.10106,2438.4,2438.0,4.10162]
[1728494113423,4.10106,2438.4,2437.9,5.08741899]
[1728494113625,0.05898839,2438.3,2437.9,6.1271219]
[1728494113853,0.7695,2438.2,2437.5,4.9589541]
[1728494114131,0.7695,2438.2,2437.4,2.04822615]
[1728494114132,0.05887423,2438.1,2437.7,4.10207]
[1728494114314,0.05887423,2438.1,2437.8,4.10204]
[1728494114521,0.05887423,2438.1,2437.6,4.10237]
[1728494114682,4.16043423,2438.1,2437.6,9.101525]
[1728494114887,4.10173,2438.0,2437.6,4.999155]
[1728494115086,8.20356,2438.0,2437.6,0.896845]
[1728494115281,4.16077423,2437.9,2437.6,0.896845]
[1728494115490,4.90018,2437.8,2437.3,4.10282]
[1728494115695,4.90018,2437.8,2437.4,4.10267]
[1728494115934,0.05807159,2437.7,2437.4,4.10267]
[1728494116137,4.90018,2437.8,2437.4,4.10267]
[1728494116307,0.05807159,2437.6,2437.4,4.10267]
[1728494116495,9.00238,2437.8,2437.3,0.20800396]
[1728494116690,4.16030159,2437.7,2437.3,5.22800536]
[1728494117033,0.05807159,2437.7,2437.3,5.0199214]
[1728494117211,0.05807159,2437.7,2437.4,4.10264]
[1728494117405,0.7981,2437.8,2437.4,4.10264]
[1728494117606,0.05802659,2437.6,2437.4,4.10264]
[1728494117800,0.7981,2437.8,2437.4,4.10264]
[1728494118001,0.05802659,2437.5,2437.4,5.31489614]
[1728494118214,0.7981,2437.8,2437.4,5.31489614]
[1728494118733,0.05802659,2437.7,2437.4,5.31489614]
[1728494119036,9.00238,2437.8,2437.4,5.31489614]
[1728494119335,4.90023,2437.8,2437.3,5.0200014]
[1728494119631,4.16025659,2437.7,2437.3,5.0200014]
[1728494120530,4.10239,2437.6,2437.2,0.20186685]
[1728494120950,0.05802659,2437.5,2437.2,0.20186685]
[1728494121240,0.05802659,2437.5,2437.2,4.30492685]
[1728494121550,0.05802659,2437.5,2437.3,8.20568]
[1728494121790,0.7981,2437.8,2437.4,4.10273]
[1728494122228,4.90017,2437.8,2437.3,8.2056]
[1728494122427,4.90017,2437.8,2437.4,4.10272]
[1728494125152,0.7981,2437.8,2437.4,4.10263]
[1728494125357,0.7981,2437.8,2437.5,4.10255]
[1728494130071,4.90017,2437.8,2437.4,4.10272]
[1728494130637,4.90017,2437.8,2437.4,4.18476419]
[1728494130848,4.90017,2437.8,2437.4,5.10520943]
[1728494131070,0.05509347,2437.7,2437.4,5.10520943]
[1728494131372,4.90017,2437.8,2437.4,5.10520943]
[1728494131547,0.05509347,2437.6,2437.4,5.10520943]
[1728494131870,4.90017,2437.8,2437.4,5.10520943]
[1728494131871,9.00236,2437.8,2437.4,5.10520943]
[1728494132070,4.90017,2437.8,2437.4,4.18476419]
[1728494132269,0.05509347,2437.7,2437.3,4.10288]
[1728494132655,4.90017,2437.8,2437.3,4.10288]
[1728494132862,0.05509347,2437.6,2437.3,4.10288]
[1728494133037,4.10222,2437.7,2437.3,4.10288]
[1728494133234,0.05509347,2437.5,2437.3,4.10288]
[1728494133465,0.8136,2437.5,2437.1,4.30870225]
[1728494133645,0.05509347,2437.4,2437.1,5.02040823]
[1728494134076,0.05509347,2437.4,2437.2,4.10306]
[1728494134279,0.05509347,2437.4,2437.1,5.02040823]
[1728494134484,0.05509347,2437.4,2436.9,0.7597]
[1728494134783,0.05509347,2437.4,2437.1,4.10322]
[1728494135687,4.10292,2437.3,2436.9,4.10357]
[1728494135852,0.05509347,2437.4,2436.9,4.10357]
[1728494136052,0.05496534,2437.2,2437.0,4.1034]
[1728494136270,4.1028,2437.4,2437.0,4.1034]
[1728494136477,0.05496534,2437.1,2437.0,4.1034]
[1728494136639,4.1028,2437.4,2437.0,4.1034]
[1728494136855,0.05496534,2437.1,2437.0,4.10328]
[1728494137065,0.8136,2437.5,2437.2,4.10306]
[1728494137667,0.8136,2437.5,2437.1,4.10319]
[1728494137987,4.91618,2437.5,2437.1,4.10319]
[1728494138794,4.91618,2437.5,2437.2,4.10305]
[1728494138795,0.8136,2437.5,2437.2,4.10305]
[1728494139578,0.8136,2437.5,2437.1,0.751]
[1728494139783,4.91616,2437.5,2437.1,4.85417]
[1728494142174,4.10275,2437.4,2437.1,0.751]
[1728494142372,4.91616,2437.5,2437.1,4.85416]
[1728494145902,0.8136,2437.5,2437.1,4.85416]
[1728494146079,0.05469173,2437.4,2437.1,4.85416]
[1728494146289,0.05469173,2437.4,2437.1,5.8319865]
[1728494146974,0.05469173,2437.4,2437.1,4.85416]
[1728494147387,0.05469173,2437.4,2437.2,4.10298]
[1728494147576,4.88163,2437.7,2437.2,4.10298]
[1728494147782,0.05470905,2437.3,2437.2,8.20593]
[1728494148032,4.88166,2437.7,2437.3,4.10287]
[1728494148190,4.88166,2437.7,2437.3,4.17020039]
[1728494148400,4.88166,2437.7,2437.3,0.06733039]
[1728494148401,4.10244,2437.6,2437.3,0.06733039]
[1728494148570,4.88166,2437.7,2437.2,4.998643]
[1728494148767,4.88166,2437.7,2437.3,4.1029]
[1728494149270,4.88166,2437.7,2437.3,5.11081601]
[1728494149572,4.88166,2437.7,2437.3,5.17020095]
[1728494151504,4.102,2437.9,2437.3,5.17020095]
[1728494151505,4.10191,2437.9,2437.5,4.10253]
[1728494153119,4.88334,2438.0,2437.5,4.10249]